[Event "Titled Tuesday Blitz July 25 Early 2023"]
[White "Urbina Perez, Juan Antonio"]
[Black "Oro, Faustino"]
[WhiteFideId "2217368"]
[BlackFideId "20000197"]
[WhiteElo "2455"]
[BlackElo "2848"]
[Result "0-1"]
[Round "1"]
[TimeControl "180+2"]
[Date "2023.07.25"]
[WhiteClock "0:00:01"]
[BlackClock "0:00:05"]
[Board "53"]

1. e4 {[%clk 0:02:59]}  e5 {[%clk 0:02:59]} 2. Nf3 {[%clk 0:02:59]}  Nc6 {[%clk 0:02:59]} 3. Bc4 {[%clk 0:02:59]}  Bc5 {[%clk 0:02:59]} 4. d3 {[%clk 0:02:58]}  Nf6 {[%clk 0:02:59]} 5. Bg5 {[%clk 0:02:58]}  h6 {[%clk 0:02:58]} 6. Bh4 {[%clk 0:02:58]}  Be7 {[%clk 0:02:56]} 7. a4 {[%clk 0:02:55]}  d6 {[%clk 0:02:55]} 8. a5 {[%clk 0:02:55]}  a6 {[%clk 0:02:55]} 9. O-O {[%clk 0:02:53]}  O-O {[%clk 0:02:55]} 10. c3 {[%clk 0:02:52]}  d5 {[%clk 0:02:36]} 11. Bxf6 {[%clk 0:02:44]}  dxc4 {[%clk 0:02:20]} 12. Bxe7 {[%clk 0:02:36]}  Qxe7 {[%clk 0:02:21]} 13. dxc4 {[%clk 0:02:36]}  Bg4 {[%clk 0:02:16]} 14. Nbd2 {[%clk 0:02:35]}  Nd8 {[%clk 0:02:15]} 15. h3 {[%clk 0:02:33]}  Bh5 {[%clk 0:02:14]} 16. Qb3 {[%clk 0:02:30]}  Rb8 {[%clk 0:01:53]} 17. Rfe1 {[%clk 0:02:26]}  Ne6 {[%clk 0:01:50]} 18. Qa3 {[%clk 0:02:11]}  Qf6 {[%clk 0:00:19]} 19. Re3 {[%clk 0:02:09]}  Nf4 {[%clk 0:00:19]} 20. Qc5 {[%clk 0:01:51]}  Rfd8 {[%clk 0:00:18]} 21. Kh2 {[%clk 0:01:19]}  Nd3 {[%clk 0:00:16]} 22. Qxc7 {[%clk 0:01:11]}  Qf4+ {[%clk 0:00:15]} 23. g3 {[%clk 0:00:54]}  Qf6 {[%clk 0:00:16]} 24. Rf1 {[%clk 0:00:44]}  Nxb2 {[%clk 0:00:15]} 25. Kg2 {[%clk 0:00:37]}  Qe6 {[%clk 0:00:13]} 26. Nb3 {[%clk 0:00:31]}  Qxc4 {[%clk 0:00:12]} 27. Qxc4 {[%clk 0:00:31]}  Nxc4 {[%clk 0:00:13]} 28. Re2 {[%clk 0:00:27]}  Rd3 {[%clk 0:00:13]} 29. g4 {[%clk 0:00:25]}  Bg6 {[%clk 0:00:14]} 30. Nc5 {[%clk 0:00:25]}  Rxc3 {[%clk 0:00:13]} 31. Nd7 {[%clk 0:00:25]}  Re8 {[%clk 0:00:13]} 32. Rb1 {[%clk 0:00:24]}  Nxa5 {[%clk 0:00:09]} 33. Rb6 {[%clk 0:00:17]}  Nc4 {[%clk 0:00:08]} 34. Rxb7 {[%clk 0:00:16]}  Nd6 {[%clk 0:00:09]} 35. Ra7 {[%clk 0:00:16]}  Bxe4 {[%clk 0:00:09]} 36. Re3 {[%clk 0:00:11]}  Rxe3 {[%clk 0:00:08]} 37. fxe3 {[%clk 0:00:12]}  Nc4 {[%clk 0:00:05]} 38. Kf2 {[%clk 0:00:10]}  a5 {[%clk 0:00:04]} 39. Rc7 {[%clk 0:00:08]}  Bxf3 {[%clk 0:00:04]} 40. Kxf3 {[%clk 0:00:09]}  e4+ {[%clk 0:00:04]} 41. Kf4 {[%clk 0:00:07]}  Nd6 {[%clk 0:00:04]} 42. Ra7 {[%clk 0:00:06]}  Nc4 {[%clk 0:00:04]} 43. Rc7 {[%clk 0:00:04]}  g5+ {[%clk 0:00:04]} 44. Kg3 {[%clk 0:00:01]}  Nxe3 {[%clk 0:00:05]} 0-1


[Site "https://www.chess.com"]

[Event "Titled Tuesday Blitz July 25 Early 2023"]
[White "Ilamparthi A R"]
[Black "Ai, Evan"]
[WhiteFideId "45015775"]
[BlackFideId "2094770"]
[WhiteElo "2848"]
[BlackElo "2454"]
[Result "1-0"]
[Round "1"]
[TimeControl "180+2"]
[Date "2023.07.25"]
[WhiteClock "0:01:20"]
[BlackClock "0:01:45"]
[Board "54"]

1. e4 {[%clk 0:03:00]}  e5 {[%clk 0:02:56]} 2. Nf3 {[%clk 0:03:00]}  Nc6 {[%clk 0:02:56]} 3. d3 {[%clk 0:02:57]}  Bc5 {[%clk 0:02:54]} 4. Nxe5 {[%clk 0:02:57]}  Nxe5 {[%clk 0:02:52]} 5. d4 {[%clk 0:02:57]}  Bxd4 {[%clk 0:02:44]} 6. Qxd4 {[%clk 0:02:58]}  Qf6 {[%clk 0:02:38]} 7. Be3 {[%clk 0:02:52]}  Nc6 {[%clk 0:02:32]} 8. Qxf6 {[%clk 0:02:48]}  Nxf6 {[%clk 0:02:33]} 9. Nc3 {[%clk 0:02:48]}  d6 {[%clk 0:02:33]} 10. f3 {[%clk 0:02:48]}  a6 {[%clk 0:02:33]} 11. O-O-O {[%clk 0:02:48]}  O-O {[%clk 0:02:34]} 12. Be2 {[%clk 0:02:46]}  h6 {[%clk 0:02:34]} 13. g4 {[%clk 0:02:44]}  Be6 {[%clk 0:02:31]} 14. h4 {[%clk 0:02:43]}  Ne5 {[%clk 0:02:09]} 15. g5 {[%clk 0:02:37]}  Nh5 {[%clk 0:02:04]} 16. gxh6 {[%clk 0:02:00]}  g6 {[%clk 0:02:00]} 17. Rhg1 {[%clk 0:01:59]}  Nc4 {[%clk 0:01:54]} 18. Bxc4 {[%clk 0:01:36]}  Bxc4 {[%clk 0:01:55]} 19. b3 {[%clk 0:01:36]}  Be6 {[%clk 0:01:54]} 20. Nd5 {[%clk 0:01:34]}  Bxd5 {[%clk 0:01:46]} 21. Rxd5 {[%clk 0:01:35]}  Kh7 {[%clk 0:01:46]} 22. Rxh5 {[%clk 0:01:20]}  gxh5 {[%clk 0:01:47]} 23. Rg7+ {[%clk 0:01:20]}  Kh8 {[%clk 0:01:47]} 24. Bd4 {[%clk 0:01:20]}  c5 {[%clk 0:01:45]} 25. Bf6 {[%clk 0:01:20]} 1-0


[Site "https://www.chess.com"]

[Event "Titled Tuesday Blitz July 25 Early 2023"]
[White "Liu, Casper"]
[Black "Kaasen, Tor Fredrik"]
[WhiteFideId "1454153"]
[BlackFideId "1516647"]
[WhiteElo "2451"]
[BlackElo "2835"]
[Result "0-1"]
[Round "1"]
[TimeControl "180+2"]
[Date "2023.07.25"]
[WhiteClock "0:00:19"]
[BlackClock "0:00:22"]
[Board "59"]

1. e4 {[%clk 0:03:00]}  e5 {[%clk 0:02:59]} 2. d4 {[%clk 0:03:01]}  exd4 {[%clk 0:02:59]} 3. Qxd4 {[%clk 0:03:02]}  Nc6 {[%clk 0:02:59]} 4. Qe3 {[%clk 0:03:02]}  g6 {[%clk 0:02:54]} 5. Nc3 {[%clk 0:03:03]}  Bg7 {[%clk 0:02:55]} 6. Bd2 {[%clk 0:03:04]}  d6 {[%clk 0:02:53]} 7. O-O-O {[%clk 0:03:04]}  Nf6 {[%clk 0:02:52]} 8. f3 {[%clk 0:03:03]}  O-O {[%clk 0:02:53]} 9. h4 {[%clk 0:03:04]}  h5 {[%clk 0:02:52]} 10. Nh3 {[%clk 0:03:03]}  a6 {[%clk 0:02:51]} 11. Ng5 {[%clk 0:03:03]}  b5 {[%clk 0:02:49]} 12. Kb1 {[%clk 0:03:03]}  b4 {[%clk 0:02:48]} 13. Nd5 {[%clk 0:03:00]}  a5 {[%clk 0:02:35]} 14. Bc4 {[%clk 0:02:55]}  Ne5 {[%clk 0:02:29]} 15. Nxf6+ {[%clk 0:02:42]}  Bxf6 {[%clk 0:02:29]} 16. Be2 {[%clk 0:02:32]}  Ba6 {[%clk 0:02:28]} 17. g4 {[%clk 0:02:22]}  hxg4 {[%clk 0:02:24]} 18. f4 {[%clk 0:01:37]}  Bxe2 {[%clk 0:01:38]} 19. Qxe2 {[%clk 0:01:38]}  Nf3 {[%clk 0:01:34]} 20. Nxf3 {[%clk 0:01:30]}  gxf3 {[%clk 0:01:34]} 21. Qxf3 {[%clk 0:01:31]}  Kg7 {[%clk 0:01:27]} 22. h5 {[%clk 0:01:27]}  Rh8 {[%clk 0:01:28]} 23. Rdg1 {[%clk 0:01:15]}  Qe7 {[%clk 0:01:07]} 24. hxg6 {[%clk 0:01:06]}  fxg6 {[%clk 0:01:06]} 25. f5 {[%clk 0:00:53]}  g5 {[%clk 0:00:58]} 26. Rh5 {[%clk 0:00:28]}  Rxh5 {[%clk 0:00:45]} 27. Qxh5 {[%clk 0:00:28]}  Rh8 {[%clk 0:00:46]} 28. Qg6+ {[%clk 0:00:27]}  Kf8 {[%clk 0:00:46]} 29. Bxg5 {[%clk 0:00:20]}  Bxg5 {[%clk 0:00:45]} 30. Rxg5 {[%clk 0:00:20]}  Rh1+ {[%clk 0:00:35]} 31. Rg1 {[%clk 0:00:20]}  Rxg1+ {[%clk 0:00:36]} 32. Qxg1 {[%clk 0:00:21]}  Qxe4 {[%clk 0:00:28]} 33. f6 {[%clk 0:00:21]}  Qh7 {[%clk 0:00:26]} 34. b3 {[%clk 0:00:21]}  Kf7 {[%clk 0:00:25]} 35. Qg5 {[%clk 0:00:21]}  c5 {[%clk 0:00:19]} 36. Qf4 {[%clk 0:00:15]}  Qh1+ {[%clk 0:00:18]} 37. Kb2 {[%clk 0:00:15]}  Qd5 {[%clk 0:00:18]} 38. a3 {[%clk 0:00:13]}  Qe5+ {[%clk 0:00:17]} 39. Qxe5 {[%clk 0:00:12]}  dxe5 {[%clk 0:00:18]} 40. axb4 {[%clk 0:00:13]}  axb4 {[%clk 0:00:18]} 41. c3 {[%clk 0:00:14]}  Kxf6 {[%clk 0:00:19]} 42. cxb4 {[%clk 0:00:15]}  cxb4 {[%clk 0:00:19]} 43. Kc2 {[%clk 0:00:16]}  Kf5 {[%clk 0:00:19]} 44. Kd3 {[%clk 0:00:17]}  Kf4 {[%clk 0:00:20]} 45. Kc4 {[%clk 0:00:17]}  e4 {[%clk 0:00:20]} 46. Kxb4 {[%clk 0:00:18]}  e3 {[%clk 0:00:21]} 47. Kc3 {[%clk 0:00:19]}  Kf3 {[%clk 0:00:21]} 48. b4 {[%clk 0:00:18]}  e2 {[%clk 0:00:22]} 49. b5 {[%clk 0:00:19]}  e1=Q+ {[%clk 0:00:22]} 0-1


[Site "https://www.chess.com"]

[Event "Titled Tuesday Blitz July 25 Early 2023"]
[White "Bachmann, Axel"]
[Black "Herzog2012"]
[WhiteFideId "3700488"]
[WhiteElo "2825"]
[BlackElo "2450"]
[Result "1-0"]
[Round "1"]
[TimeControl "180+2"]
[Date "2023.07.25"]
[WhiteClock "0:00:18"]
[BlackClock "0:00:01"]
[Board "60"]

1. e4 {[%clk 0:02:59]}  c5 {[%clk 0:02:59]} 2. Nc3 {[%clk 0:03:00]}  Nc6 {[%clk 0:02:58]} 3. f4 {[%clk 0:03:00]}  g6 {[%clk 0:02:57]} 4. Nf3 {[%clk 0:03:00]}  Bg7 {[%clk 0:02:58]} 5. Bb5 {[%clk 0:03:00]}  Nd4 {[%clk 0:02:52]} 6. a4 {[%clk 0:02:56]}  e6 {[%clk 0:02:43]} 7. e5 {[%clk 0:02:54]}  a6 {[%clk 0:02:38]} 8. Bd3 {[%clk 0:02:42]}  d6 {[%clk 0:02:22]} 9. Ne4 {[%clk 0:02:37]}  Nxf3+ {[%clk 0:01:58]} 10. Qxf3 {[%clk 0:02:38]}  dxe5 {[%clk 0:01:59]} 11. fxe5 {[%clk 0:02:38]}  Bxe5 {[%clk 0:01:59]} 12. Nxc5 {[%clk 0:02:36]}  Ne7 {[%clk 0:01:55]} 13. Nxb7 {[%clk 0:02:25]}  Bxb7 {[%clk 0:01:53]} 14. Qxb7 {[%clk 0:02:26]}  O-O {[%clk 0:01:44]} 15. Qe4 {[%clk 0:02:23]}  Qd6 {[%clk 0:01:38]} 16. Be2 {[%clk 0:02:06]}  f5 {[%clk 0:01:36]} 17. Qd3 {[%clk 0:01:59]}  Qb6 {[%clk 0:01:33]} 18. a5 {[%clk 0:01:55]}  Qc7 {[%clk 0:01:12]} 19. Qc4 {[%clk 0:01:49]}  Qd6 {[%clk 0:01:05]} 20. Qd3 {[%clk 0:01:13]}  Qc7 {[%clk 0:01:03]} 21. Ra4 {[%clk 0:01:13]}  Bxh2 {[%clk 0:00:44]} 22. Rc4 {[%clk 0:00:51]}  Bg3+ {[%clk 0:00:23]} 23. Kf1 {[%clk 0:00:50]}  Qe5 {[%clk 0:00:20]} 24. Qd4 {[%clk 0:00:38]}  Qxa5 {[%clk 0:00:12]} 25. Qd7 {[%clk 0:00:34]}  Qa1 {[%clk 0:00:06]} 26. Bd1 {[%clk 0:00:26]}  Qxc1 {[%clk 0:00:03]} 27. Ke2 {[%clk 0:00:27]}  Rf7 {[%clk 0:00:02]} 28. Qxe6 {[%clk 0:00:28]}  Re8 {[%clk 0:00:02]} 29. Rxh7 {[%clk 0:00:26]}  Kxh7 {[%clk 0:00:01]} 30. Qxf7+ {[%clk 0:00:26]}  Kh6 {[%clk 0:00:01]} 31. Qxe8 {[%clk 0:00:27]}  Nd5 {[%clk 0:00:02]} 32. Qh8+ {[%clk 0:00:25]}  Kg5 {[%clk 0:00:02]} 33. Qd8+ {[%clk 0:00:26]}  Nf6 {[%clk 0:00:02]} 34. Qd4 {[%clk 0:00:20]}  Ng4 {[%clk 0:00:01]} 35. Qd8+ {[%clk 0:00:18]} 1-0


[Site "https://www.chess.com"]

[Event "Titled Tuesday Blitz July 25 Early 2023"]
[White "Mitrabha, Guha"]
[Black "Itkis, Boris"]
[WhiteFideId "5057000"]
[BlackFideId "1209167"]
[WhiteElo "2823"]
[BlackElo "2445"]
[Result "1-0"]
[Round "1"]
[TimeControl "180+2"]
[Date "2023.07.25"]
[WhiteClock "0:00:04"]
[BlackClock "0:00:01"]
[Board "62"]

1. Nf3 {[%clk 0:02:49]}  d5 {[%clk 0:02:59]} 2. d4 {[%clk 0:02:49]}  Nf6 {[%clk 0:02:59]} 3. Bf4 {[%clk 0:02:50]}  c5 {[%clk 0:02:58]} 4. e3 {[%clk 0:02:50]}  Nc6 {[%clk 0:02:56]} 5. Nbd2 {[%clk 0:02:51]}  g6 {[%clk 0:02:55]} 6. dxc5 {[%clk 0:02:48]}  Nh5 {[%clk 0:02:54]} 7. Bg3 {[%clk 0:02:46]}  Bg7 {[%clk 0:02:47]} 8. c3 {[%clk 0:02:44]}  Nxg3 {[%clk 0:02:36]} 9. hxg3 {[%clk 0:02:43]}  O-O {[%clk 0:02:35]} 10. Be2 {[%clk 0:02:42]}  a5 {[%clk 0:02:29]} 11. a4 {[%clk 0:02:41]}  b6 {[%clk 0:02:28]} 12. cxb6 {[%clk 0:02:41]}  Qxb6 {[%clk 0:02:29]} 13. Qb3 {[%clk 0:02:40]}  Rb8 {[%clk 0:02:10]} 14. Qxb6 {[%clk 0:02:37]}  Rxb6 {[%clk 0:02:10]} 15. Bb5 {[%clk 0:02:33]}  Ba6 {[%clk 0:02:10]} 16. Bxa6 {[%clk 0:02:32]}  Rxa6 {[%clk 0:02:11]} 17. Nd4 {[%clk 0:02:32]}  Rb8 {[%clk 0:02:07]} 18. Nxc6 {[%clk 0:02:14]}  Rxc6 {[%clk 0:02:07]} 19. Ra2 {[%clk 0:01:50]}  Rcb6 {[%clk 0:02:03]} 20. b4 {[%clk 0:01:39]}  axb4 {[%clk 0:01:59]} 21. cxb4 {[%clk 0:01:32]}  Rxb4 {[%clk 0:01:58]} 22. O-O {[%clk 0:01:30]}  Ra8 {[%clk 0:01:55]} 23. a5 {[%clk 0:01:24]}  Rb5 {[%clk 0:01:55]} 24. a6 {[%clk 0:01:24]}  Rb6 {[%clk 0:01:55]} 25. Rb1 {[%clk 0:01:21]}  Rbxa6 {[%clk 0:01:47]} 26. Rxa6 {[%clk 0:01:15]}  Rxa6 {[%clk 0:01:48]} 27. Rb8+ {[%clk 0:01:16]}  Bf8 {[%clk 0:01:48]} 28. g4 {[%clk 0:00:57]}  h6 {[%clk 0:01:29]} 29. g3 {[%clk 0:00:46]}  Kg7 {[%clk 0:01:28]} 30. Kg2 {[%clk 0:00:30]}  e6 {[%clk 0:01:27]} 31. Nf3 {[%clk 0:00:30]}  Be7 {[%clk 0:01:15]} 32. Rb7 {[%clk 0:00:29]}  Bf6 {[%clk 0:01:14]} 33. Ne1 {[%clk 0:00:27]}  Ra4 {[%clk 0:01:12]} 34. Kf3 {[%clk 0:00:21]}  e5 {[%clk 0:00:55]} 35. Rd7 {[%clk 0:00:19]}  d4 {[%clk 0:00:39]} 36. e4 {[%clk 0:00:14]}  Bg5 {[%clk 0:00:29]} 37. Nd3 {[%clk 0:00:13]}  Ra3 {[%clk 0:00:29]} 38. Ke2 {[%clk 0:00:12]}  Ra2+ {[%clk 0:00:28]} 39. Kf1 {[%clk 0:00:12]}  Bf6 {[%clk 0:00:25]} 40. Rd5 {[%clk 0:00:13]}  Ra8 {[%clk 0:00:13]} 41. Ke2 {[%clk 0:00:11]}  Ra2+ {[%clk 0:00:13]} 42. Kf1 {[%clk 0:00:10]}  Ra8 {[%clk 0:00:13]} 43. f4 {[%clk 0:00:10]}  exf4 {[%clk 0:00:13]} 44. gxf4 {[%clk 0:00:11]}  Ra3 {[%clk 0:00:13]} 45. Ke2 {[%clk 0:00:10]}  Ra2+ {[%clk 0:00:13]} 46. Kd1 {[%clk 0:00:11]}  Ra3 {[%clk 0:00:13]} 47. Kc2 {[%clk 0:00:11]}  Rc3+ {[%clk 0:00:11]} 48. Kd2 {[%clk 0:00:12]}  h5 {[%clk 0:00:09]} 49. gxh5 {[%clk 0:00:09]}  gxh5 {[%clk 0:00:10]} 50. Rxh5 {[%clk 0:00:10]}  Ra3 {[%clk 0:00:10]} 51. Rd5 {[%clk 0:00:10]}  Ra2+ {[%clk 0:00:09]} 52. Kd1 {[%clk 0:00:10]}  Ra1+ {[%clk 0:00:09]} 53. Kc2 {[%clk 0:00:10]}  Ra2+ {[%clk 0:00:10]} 54. Kb3 {[%clk 0:00:11]}  Rd2 {[%clk 0:00:10]} 55. Nc5 {[%clk 0:00:10]}  Rf2 {[%clk 0:00:07]} 56. e5 {[%clk 0:00:10]}  Bh4 {[%clk 0:00:07]} 57. Nd3 {[%clk 0:00:10]}  Rf3 {[%clk 0:00:06]} 58. Rxd4 {[%clk 0:00:10]}  Bg3 {[%clk 0:00:06]} 59. Kc4 {[%clk 0:00:10]}  Kg6 {[%clk 0:00:07]} 60. Rd6+ {[%clk 0:00:10]}  Kf5 {[%clk 0:00:07]} 61. Rf6+ {[%clk 0:00:10]}  Ke4 {[%clk 0:00:07]} 62. Nc5+ {[%clk 0:00:09]}  Ke3 {[%clk 0:00:07]} 63. Rxf7 {[%clk 0:00:07]}  Bxf4 {[%clk 0:00:07]} 64. e6 {[%clk 0:00:07]}  Bg5 {[%clk 0:00:04]} 65. Rg7 {[%clk 0:00:06]}  Bf6 {[%clk 0:00:03]} 66. Rf7 {[%clk 0:00:06]}  Rf4+ {[%clk 0:00:03]} 67. Kd5 {[%clk 0:00:06]}  Rd4+ {[%clk 0:00:02]} 68. Kc6 {[%clk 0:00:06]}  Bh4 {[%clk 0:00:03]} 69. Rh7 {[%clk 0:00:05]}  Bg5 {[%clk 0:00:03]} 70. Rh5 {[%clk 0:00:05]}  Bf6 {[%clk 0:00:03]} 71. Nd7 {[%clk 0:00:04]}  Bh4 {[%clk 0:00:02]} 72. Re5+ {[%clk 0:00:04]}  Kf4 {[%clk 0:00:01]} 73. Re2 {[%clk 0:00:04]}  Bg5 {[%clk 0:00:01]} 74. Nc5 {[%clk 0:00:04]}  Kg4 {[%clk 0:00:01]} 75. Re5 {[%clk 0:00:04]}  Kh5 {[%clk 0:00:01]} 76. e7 {[%clk 0:00:04]} 1-0


[Site "https://www.chess.com"]

[Event "Titled Tuesday Blitz July 25 Early 2023"]
[White "Rakitic2010"]
[Black "Putnam, Liam"]
[BlackFideId "30938279"]
[WhiteElo "2445"]
[BlackElo "2821"]
[Result "1-0"]
[Round "1"]
[TimeControl "180+2"]
[Date "2023.07.25"]
[WhiteClock "0:00:36"]
[BlackClock "0:00:24"]
[Board "63"]

1. e4 {[%clk 0:03:00]}  e5 {[%clk 0:02:58]} 2. d4 {[%clk 0:03:00]}  exd4 {[%clk 0:02:58]} 3. Qxd4 {[%clk 0:03:01]}  Nc6 {[%clk 0:02:59]} 4. Qe3 {[%clk 0:03:01]}  Nf6 {[%clk 0:02:59]} 5. Nc3 {[%clk 0:03:01]}  Bb4 {[%clk 0:02:59]} 6. Bd2 {[%clk 0:03:02]}  O-O {[%clk 0:02:59]} 7. O-O-O {[%clk 0:03:02]}  Re8 {[%clk 0:02:59]} 8. Qf4 {[%clk 0:03:03]}  Bxc3 {[%clk 0:02:57]} 9. Bxc3 {[%clk 0:03:02]}  Nxe4 {[%clk 0:02:57]} 10. Bc4 {[%clk 0:02:49]}  Qe7 {[%clk 0:02:39]} 11. Re1 {[%clk 0:02:35]}  d6 {[%clk 0:01:21]} 12. f3 {[%clk 0:02:28]}  Be6 {[%clk 0:01:13]} 13. Rxe4 {[%clk 0:02:14]}  Ne5 {[%clk 0:00:57]} 14. Bxe6 {[%clk 0:01:59]}  Qxe6 {[%clk 0:00:55]} 15. Kb1 {[%clk 0:01:54]}  Qd5 {[%clk 0:00:48]} 16. Nh3 {[%clk 0:01:44]}  Ng6 {[%clk 0:00:45]} 17. Qe3 {[%clk 0:01:21]}  Rxe4 {[%clk 0:00:41]} 18. fxe4 {[%clk 0:01:21]}  Qe6 {[%clk 0:00:41]} 19. Rf1 {[%clk 0:01:20]}  f6 {[%clk 0:00:40]} 20. Nf4 {[%clk 0:01:12]}  Qc4 {[%clk 0:00:40]} 21. Qd3 {[%clk 0:01:06]}  Qf7 {[%clk 0:00:38]} 22. Nd5 {[%clk 0:01:03]}  Re8 {[%clk 0:00:20]} 23. Bxf6 {[%clk 0:00:51]}  c6 {[%clk 0:00:14]} 24. Bxg7 {[%clk 0:00:45]}  cxd5 {[%clk 0:00:09]} 25. Rxf7 {[%clk 0:00:44]}  Kxf7 {[%clk 0:00:07]} 26. Bd4 {[%clk 0:00:35]}  dxe4 {[%clk 0:00:08]} 27. Qb3+ {[%clk 0:00:34]}  Re6 {[%clk 0:00:07]} 28. Qxb7+ {[%clk 0:00:34]}  Ne7 {[%clk 0:00:08]} 29. Be3 {[%clk 0:00:32]}  Kf6 {[%clk 0:00:08]} 30. Qxa7 {[%clk 0:00:32]}  Nf5 {[%clk 0:00:09]} 31. g4 {[%clk 0:00:31]}  Nxe3 {[%clk 0:00:07]} 32. Qxe3 {[%clk 0:00:31]}  d5 {[%clk 0:00:08]} 33. c3 {[%clk 0:00:30]}  Ke5 {[%clk 0:00:07]} 34. Kc2 {[%clk 0:00:30]}  Rg6 {[%clk 0:00:07]} 35. h3 {[%clk 0:00:30]}  h5 {[%clk 0:00:07]} 36. Qd4+ {[%clk 0:00:28]}  Ke6 {[%clk 0:00:07]} 37. Qb6+ {[%clk 0:00:28]}  Kf7 {[%clk 0:00:07]} 38. Qb7+ {[%clk 0:00:27]}  Kf6 {[%clk 0:00:08]} 39. Qxd5 {[%clk 0:00:26]}  hxg4 {[%clk 0:00:08]} 40. hxg4 {[%clk 0:00:26]}  Rxg4 {[%clk 0:00:09]} 41. Kb3 {[%clk 0:00:26]}  e3 {[%clk 0:00:09]} 42. Qf3+ {[%clk 0:00:26]}  Kg5 {[%clk 0:00:09]} 43. Qxe3+ {[%clk 0:00:27]}  Kf5 {[%clk 0:00:10]} 44. Qf3+ {[%clk 0:00:27]}  Rf4 {[%clk 0:00:10]} 45. Qxf4+ {[%clk 0:00:27]}  Kxf4 {[%clk 0:00:11]} 46. Kb4 {[%clk 0:00:28]}  Ke5 {[%clk 0:00:12]} 47. a4 {[%clk 0:00:29]}  Kd6 {[%clk 0:00:13]} 48. Kb5 {[%clk 0:00:30]}  Kc7 {[%clk 0:00:14]} 49. b4 {[%clk 0:00:30]}  Kb8 {[%clk 0:00:15]} 50. c4 {[%clk 0:00:31]}  Ka8 {[%clk 0:00:15]} 51. a5 {[%clk 0:00:32]}  Kb8 {[%clk 0:00:16]} 52. c5 {[%clk 0:00:33]}  Kc8 {[%clk 0:00:17]} 53. Kb6 {[%clk 0:00:33]}  Kb8 {[%clk 0:00:18]} 54. b5 {[%clk 0:00:34]}  Ka8 {[%clk 0:00:19]} 55. a6 {[%clk 0:00:35]}  Kb8 {[%clk 0:00:20]} 56. c6 {[%clk 0:00:35]}  Ka8 {[%clk 0:00:20]} 57. Kc5 {[%clk 0:00:35]}  Ka7 {[%clk 0:00:21]} 58. b6+ {[%clk 0:00:36]}  Kb8 {[%clk 0:00:22]} 59. c7+ {[%clk 0:00:36]}  Kc8 {[%clk 0:00:22]} 60. a7 {[%clk 0:00:35]}  Kb7 {[%clk 0:00:23]} 61. a8=Q+ {[%clk 0:00:36]}  Kxa8 {[%clk 0:00:24]} 62. c8=Q# {[%clk 0:00:36]} 1-0


[Site "https://www.chess.com"]

[Event "Titled Tuesday Blitz July 25 Early 2023"]
[White "Kravtsiv, Martyn"]
[Black "Zheenbekov, Nurgazy"]
[WhiteFideId "14113147"]
[BlackFideId "13800485"]
[WhiteElo "2818"]
[BlackElo "2445"]
[Result "1-0"]
[Round "1"]
[TimeControl "180+2"]
[Date "2023.07.25"]
[WhiteClock "0:01:04"]
[BlackClock "0:00:32"]
[Board "64"]

1. e3 {[%clk 0:02:54]}  e5 {[%clk 0:02:58]} 2. Ne2 {[%clk 0:02:55]}  d5 {[%clk 0:02:58]} 3. b3 {[%clk 0:02:55]}  Nc6 {[%clk 0:02:55]} 4. g3 {[%clk 0:02:55]}  Nf6 {[%clk 0:02:55]} 5. Bg2 {[%clk 0:02:55]}  Bd6 {[%clk 0:02:54]} 6. Bb2 {[%clk 0:02:55]}  O-O {[%clk 0:02:54]} 7. d3 {[%clk 0:02:56]}  a5 {[%clk 0:02:49]} 8. Nd2 {[%clk 0:02:55]}  a4 {[%clk 0:02:49]} 9. a3 {[%clk 0:02:49]}  Be6 {[%clk 0:02:24]} 10. O-O {[%clk 0:02:43]}  axb3 {[%clk 0:02:17]} 11. cxb3 {[%clk 0:02:43]}  Qd7 {[%clk 0:02:17]} 12. Re1 {[%clk 0:02:38]}  Bh3 {[%clk 0:02:16]} 13. Bh1 {[%clk 0:02:37]}  Rfe8 {[%clk 0:02:16]} 14. Qc2 {[%clk 0:02:37]}  Ne7 {[%clk 0:02:07]} 15. b4 {[%clk 0:02:35]}  c6 {[%clk 0:02:06]} 16. Nc1 {[%clk 0:02:26]}  h5 {[%clk 0:02:04]} 17. Ncb3 {[%clk 0:02:19]}  h4 {[%clk 0:02:03]} 18. Nf3 {[%clk 0:02:17]}  hxg3 {[%clk 0:02:02]} 19. hxg3 {[%clk 0:02:17]}  Ng6 {[%clk 0:01:58]} 20. Ng5 {[%clk 0:02:16]}  Bf5 {[%clk 0:01:53]} 21. e4 {[%clk 0:02:15]}  Bg4 {[%clk 0:01:50]} 22. Nc5 {[%clk 0:02:10]}  Qc8 {[%clk 0:01:49]} 23. f3 {[%clk 0:02:06]}  Bd7 {[%clk 0:01:41]} 24. Bg2 {[%clk 0:02:04]}  Bxc5+ {[%clk 0:01:25]} 25. Qxc5 {[%clk 0:01:58]}  d4 {[%clk 0:01:25]} 26. Qc2 {[%clk 0:01:53]}  Nf8 {[%clk 0:01:19]} 27. f4 {[%clk 0:01:50]}  Ng4 {[%clk 0:01:17]} 28. Bc1 {[%clk 0:01:35]}  Qd8 {[%clk 0:00:59]} 29. Bf3 {[%clk 0:01:29]}  Ne3 {[%clk 0:00:42]} 30. Bxe3 {[%clk 0:01:17]}  dxe3 {[%clk 0:00:42]} 31. Rxe3 {[%clk 0:01:18]}  f6 {[%clk 0:00:42]} 32. Qa2+ {[%clk 0:01:09]}  Be6 {[%clk 0:00:35]} 33. Nxe6 {[%clk 0:01:08]}  Nxe6 {[%clk 0:00:32]} 34. f5 {[%clk 0:01:05]}  Qd4 {[%clk 0:00:32]} 35. Re1 {[%clk 0:01:04]} 1-0


[Site "https://www.chess.com"]